bitfinex/quotes_SOLUSD_20250129
["timestamp","ask_amount","ask_price","bid_price","bid_amount"]
[1738176742531,0.03,230.17,230.16,29.27521441]
[1738176745221,0.03,230.17,230.16,341.27521441]
[1738176745420,0.03,230.17,230.16,340.623644]
[1738176745850,0.03,230.28,230.18,30.0]
[1738176745851,13.59410568,230.26,230.18,30.0]
[1738176746055,13.59410568,230.27,230.19,0.65143566]
[1738176746220,13.62410568,230.28,230.23,0.12549]
[1738176746423,13.62410568,230.28,230.26,0.12549]
[1738176746746,13.59410568,230.27,230.25,23.902374]
[1738176747052,13.59410568,230.26,230.22,24.027864]
[1738176747343,13.59410568,230.24,230.22,24.027864]
[1738176748255,13.59410568,230.23,230.22,24.027864]
[1738176748827,13.59410568,230.23,230.22,24.153354]
[1738176749054,13.59410568,230.25,230.22,24.027864]
[1738176750046,13.59410568,230.25,230.23,0.12549]
[1738176750250,13.59410568,230.25,230.22,24.027864]
[1738176751053,13.59410568,230.25,230.23,0.12549]
[1738176751434,13.59410568,230.27,230.25,0.12549]
[1738176753753,13.59410568,230.26,230.22,23.776884]
[1738176753968,13.59410568,230.23,230.22,23.776884]
[1738176754259,13.59410568,230.24,230.23,0.25098]
[1738176754845,13.59410568,230.24,230.22,0.12549]
[1738176755428,15.33140568,230.24,230.19,0.65148176]
[1738176755629,15.33140568,230.24,230.14,3.0]
[1738176755630,13.59410568,230.2,230.14,3.0]
[1738176755832,13.59410568,230.18,230.16,24.153354]
[1738176756859,13.59410568,230.2,230.16,24.153354]
[1738176757541,13.59410568,230.2,230.16,24.027864]
[1738176757741,13.59410568,230.19,230.16,0.25098]
[1738176757944,13.59410568,230.2,230.16,0.25098]
[1738176758156,13.59410568,230.2,230.16,0.90262428]
[1738176758537,13.59410568,230.2,230.17,0.063]
[1738176758943,13.59410568,230.21,230.19,0.12549]
[1738176759246,13.59410568,230.2,230.18,0.25098]
[1738176759870,13.59410568,230.21,230.18,24.027864]
[1738176761070,13.59410568,230.2,230.18,0.25098]
[1738176761250,2.3464168,230.24,230.18,0.25098]
[1738176761251,13.59410568,230.19,230.18,0.25098]
[1738176762567,13.59410568,230.19,230.17,0.063]
[1738176763668,13.59410568,230.19,230.17,0.31398]
[1738176764068,0.03,230.25,230.2,0.25098]
[1738176764374,0.03,230.25,230.22,24.027864]
[1738176764669,0.03,230.25,230.24,24.278844]
[1738176764881,0.03,230.25,230.24,24.153354]
[1738176765046,0.03,230.25,230.21,0.65144263]
[1738176765247,0.03,230.25,230.22,24.278844]
[1738176765441,0.03,230.25,230.24,24.278844]
[1738176765780,0.03,230.25,230.24,24.027864]
[1738176765968,13.62410568,230.25,230.24,0.25098]
[1738176766144,0.03,230.25,230.24,0.25098]
[1738176767281,14.41752248,230.25,230.21,23.776884]
[1738176767576,13.59410568,230.22,230.18,0.65145773]
[1738176768076,13.59410568,230.22,230.19,23.902374]
[1738176768373,13.59410568,230.22,230.19,24.153354]
[1738176768556,13.59410568,230.22,230.19,0.37647]
[1738176768751,13.59410568,230.22,230.19,1.02801713]
[1738176768956,13.59410568,230.23,230.19,0.37647]
[1738176769858,13.59410568,230.21,230.17,20.063]
[1738176770061,13.59410568,230.21,230.18,0.65162515]
[1738176770260,13.59410568,230.21,230.18,24.80492951]
[1738176770453,13.59410568,230.22,230.18,24.80492951]
[1738176770884,13.59410568,230.22,230.19,0.12549]
[1738176771057,13.59410568,230.24,230.22,0.25098]
[1738176771660,13.59410568,230.24,230.19,23.776884]
[1738176771886,13.59410568,230.24,230.2,0.65156459]
[1738176772255,13.59410568,230.24,230.17,20.063]
[1738176772256,14.38752248,230.24,230.17,20.063]
[1738176772451,14.38752248,230.24,230.17,20.71460212]
[1738176772884,14.38752248,230.24,230.18,24.153354]
[1738176773375,15.33140568,230.24,230.18,24.153354]
[1738176774198,13.59410568,230.22,230.18,24.153354]
[1738176775653,15.33140568,230.24,230.18,24.153354]
[1738176776661,15.33140568,230.24,230.2,0.25098]
[1738176778591,15.33140568,230.24,230.19,0.25098]
[1738176778783,13.59410568,230.22,230.19,0.25098]
[1738176778983,0.03,230.25,230.24,0.12549]
[1738176779178,0.03,230.25,230.23,0.25098]
[1738176779364,0.03,230.25,230.23,24.027864]
[1738176779691,0.03,230.25,230.24,0.90242792]
[1738176779987,0.03,230.25,230.24,1.02791792]
[1738176780163,0.03,230.25,230.24,24.80480192]
[1738176781191,0.03,230.25,230.24,29.14800192]
[1738176783987,0.03,230.25,230.24,29.27349192]
[1738176785177,0.03,230.25,230.24,24.027864]
[1738176787199,0.03,230.25,230.24,23.776884]
[1738176788870,13.61047093,230.25,230.17,0.71451164]
[1738176789074,13.58047093,230.2,230.17,0.063]
[1738176789580,13.58047093,230.19,230.17,0.063]
[1738176791070,13.58047093,230.18,230.17,0.063]
[1738176791793,13.58047093,230.19,230.17,0.063]
[1738176792003,13.58047093,230.2,230.17,0.063]
[1738176793300,13.58047093,230.24,230.2,0.25098]
[1738176794299,13.58047093,230.24,230.19,0.25098]
[1738176794501,13.58047093,230.23,230.19,0.25098]
[1738176796409,0.03,230.25,230.22,0.25098]
[1738176796701,0.03,230.25,230.24,24.278844]
[1738176797001,0.03,230.25,230.2,4.344]
[1738176797311,0.03,230.25,230.21,24.278844]
[1738176798803,0.03,230.25,230.24,0.25098]
[1738176800311,0.03,230.25,230.24,0.37647]
[1738176800602,0.03,230.25,230.24,49.27346791]
[1738176800784,0.03,230.25,230.24,79.27346791]
[1738176802912,0.03,230.25,230.24,49.27346791]
[1738176803081,0.03,230.25,230.24,0.25098]
[1738176803607,0.03,230.25,230.23,24.278844]
[1738176803798,0.03,230.25,230.24,1.15333541]
[1738176805731,0.03,230.25,230.24,59.27341941]
[1738176806022,0.03,230.28,230.27,50.50196]
[1738176806193,0.03,230.28,230.27,74.93003767]
[1738176807123,0.03,230.28,230.27,79.27273767]
[1738176807329,0.03,230.34,230.32,30.50196]
[1738176807493,0.03,230.34,230.33,24.92983589]
[1738176808898,0.03,230.41,230.37,24.278844]
[1738176809108,0.03,230.41,230.4,0.12549]
[1738176809310,0.03,230.41,230.4,24.80425541]
[1738176811827,0.03,230.41,230.4,24.92974541]
[1738176813343,0.03,230.41,230.4,29.26994541]
[1738176813501,0.03,230.41,230.4,28.619044]
[1738176814247,0.03,230.41,230.4,29.2698249]
[1738176814819,0.03,230.49,230.46,24.278844]
[1738176815017,0.03,230.49,230.48,24.278844]
[1738176815524,0.03,230.49,230.48,24.027864]
[1738176815953,0.03,230.49,230.48,24.278844]
[1738176816445,0.03,230.49,230.48,28.617544]
[1738176816637,0.03,230.49,230.48,29.2681744]
[1738176817349,0.03,230.49,230.48,59.2681744]
[1738176819857,0.03,230.49,230.48,371.2681744]
[1738176820149,0.03,230.49,230.48,370.617544]
[1738176821133,0.03,230.49,230.48,0.50196]
[1738176821349,13.61047093,230.49,230.45,0.65070343]
[1738176821554,0.03,230.49,230.46,0.12549]
[1738176821855,0.03,230.49,230.48,44.153354]
[1738176822235,0.03,230.49,230.48,44.278844]
[1738176823434,0.03,230.49,230.48,24.278844]
[1738176824147,0.03,230.49,230.48,0.37647]
[1738176824552,0.03,230.49,230.48,24.153354]
[1738176824963,0.03,230.49,230.48,28.617544]
[1738176826059,0.03,230.49,230.48,44.278844]
[1738176826352,0.03,230.49,230.48,44.92955048]
[1738176827135,0.03,230.49,230.48,44.278844]
[1738176827541,0.03,230.49,230.48,44.9295448]
[1738176829543,0.03,230.49,230.48,44.278844]
[1738176830234,0.03,230.49,230.48,24.153354]
[1738176830442,0.03,230.49,230.48,0.37647]
[1738176830965,0.03,230.49,230.48,1.02719939]
[1738176831866,0.03,230.49,230.48,0.37647]
[1738176833154,0.03,230.49,230.48,24.153354]
[1738176833356,0.03,230.49,230.48,24.278844]
[1738176833561,0.03,230.49,230.48,28.617544]
[1738176834574,0.03,230.49,230.48,29.26821327]
[1738176835258,0.03,230.49,230.48,59.26821327]
[1738176836170,0.03,230.49,230.48,29.26821327]
[1738176836356,0.03,230.49,230.48,28.617544]
[1738176837351,0.03,230.49,230.48,4.58968]
[1738176837756,0.03,230.49,230.48,5.36590172]
[1738176837952,0.03,230.49,230.48,5.49139172]
[1738176838359,0.03,230.49,230.48,341.26827572]
[1738176838664,0.03,230.49,230.48,340.617544]
[1738176839676,0.03,230.49,230.48,343.617544]
[1738176841180,0.0001,230.49,230.48,31.617544]
[1738176841370,0.0001,230.49,230.48,32.26818157]
[1738176843194,0.0001,230.49,230.48,29.26818157]
[1738176843376,0.0001,230.49,230.48,32.26818157]
[1738176844096,0.0001,230.49,230.48,344.26818157]
[1738176844395,0.0001,230.49,230.48,343.617544]
[1738176845002,0.0001,230.49,230.48,31.617544]
[1738176845301,0.0001,230.49,230.48,32.2682349]
[1738176846094,0.0001,230.49,230.48,31.617544]
[1738176846806,0.0001,230.49,230.48,27.153354]
[1738176847019,0.0001,230.49,230.48,0.25098]
[1738176847500,13.58057093,230.49,230.42,4.3399]
[1738176847803,13.58047093,230.45,230.42,312.0]
[1738176848205,13.58047093,230.45,230.43,24.027864]
[1738176848508,13.58047093,230.45,230.43,0.25098]
[1738176848695,13.58047093,230.47,230.43,0.77637663]
[1738176848896,13.58057093,230.49,230.43,0.77637663]
[1738176849495,13.58047093,230.47,230.43,0.37647]
[1738176849697,13.58047093,230.47,230.44,0.12549]
[1738176850079,0.0001,230.49,230.44,0.50196]
[1738176850285,0.0001,230.49,230.46,0.50196]
[1738176850808,0.0001,230.49,230.46,24.278844]
[1738176851298,0.0001,230.49,230.46,28.617844]
[1738176852729,0.0001,230.49,230.46,0.25098]
[1738176852916,0.7935168,230.49,230.46,24.027864]
[1738176853713,0.0001,230.49,230.46,24.027864]
[1738176853890,0.0001,230.49,230.47,0.12549]
[1738176854301,0.0001,230.49,230.46,29.08082784]
[1738176854709,0.0001,230.49,230.47,0.25098]
[1738176854888,0.0001,230.49,230.48,24.55311916]
[1738176855394,0.0001,230.49,230.48,336.55311916]
[1738176855706,0.0001,230.49,230.48,335.902374]
[1738176855910,0.0001,230.49,230.48,340.617544]
[1738176857827,0.0001,230.49,230.48,340.492054]
[1738176858119,0.0001,230.49,230.48,340.617544]
[1738176858320,0.0001,230.49,230.48,28.617544]
[1738176859221,0.0001,230.49,230.48,28.492054]
[1738176859421,0.0001,230.49,230.48,24.153354]
[1738176859902,0.0001,230.49,230.48,24.278844]
[1738176860102,0.0001,230.49,230.48,28.617544]
[1738176861207,0.0001,230.49,230.48,340.617544]
[1738176863518,0.0001,230.49,230.48,28.617544]
[1738176863716,0.0001,230.49,230.48,29.26816642]
[1738176864217,0.0001,230.49,230.48,29.14267642]
[1738176864924,0.0001,230.49,230.48,29.26816642]
[1738176865123,0.0001,230.49,230.48,29.14267642]
[1738176866430,0.0001,230.49,230.48,0.063]
[1738176868227,0.7935168,230.49,230.48,0.063]
[1738176871634,2.5289168,230.49,230.48,0.063]
[1738176871934,4.1680168,230.49,230.48,0.063]
[1738176875411,20.999941,230.47,230.46,0.063]
[1738176875635,34.58041193,230.47,230.46,0.063]
[1738176876521,13.58047093,230.42,230.41,0.063]
[1738176877043,14.37388773,230.42,230.41,0.063]
[1738176877239,13.58047093,230.42,230.41,0.063]
[1738176878248,14.37388773,230.42,230.41,0.063]
[1738176879066,13.58047093,230.42,230.41,0.063]
[1738176880460,16.10938773,230.48,230.42,0.25098]
[1738176880666,14.37388773,230.48,230.44,0.25098]
[1738176880836,14.37388773,230.48,230.41,4.4029]
[1738176881139,13.58047093,230.48,230.42,0.65089465]
[1738176881338,13.58047093,230.48,230.41,4.4029]
[1738176881339,0.7934168,230.47,230.41,4.4029]
[1738176881559,0.7934168,230.47,230.42,0.12549]
[1738176881735,13.58047093,230.45,230.42,0.12549]
[1738176882664,13.58047093,230.47,230.43,0.12549]
[1738176883559,13.58047093,230.47,230.44,0.12549]
[1738176884878,13.58047093,230.45,230.41,0.063]
[1738176885167,13.58047093,230.45,230.41,0.43947]
[1738176885365,13.58047093,230.42,230.41,0.063]
[1738176885744,13.58047093,230.46,230.42,0.12549]
[1738176885941,0.0001,230.49,230.46,20.0]
[1738176886142,0.0001,230.49,230.48,24.278844]
[1738176886355,0.0001,230.49,230.48,28.617544]
[1738176887648,0.0001,230.49,230.48,340.617544]
[1738176892258,0.0001,230.49,230.48,346.885344]
[1738176892974,13.58047093,230.66,230.58,24.278844]
[1738176893154,13.58047093,230.66,230.59,0.65038099]
[1738176893363,13.58047093,230.66,230.6,24.278844]
[1738176893555,13.58047093,230.66,230.63,0.12549]
[1738176893755,13.58047093,230.66,230.61,0.65033791]
[1738176893961,13.58047093,230.62,230.59,3.0]
[1738176894976,13.58047093,230.62,230.6,0.37647]
[1738176895184,13.58047093,230.62,230.6,0.12549]
[1738176895372,13.58047093,230.61,230.59,3.0]
[1738176895753,13.58047093,230.6,230.59,3.0]
[1738176897277,15.31507093,230.6,230.59,3.0]
[1738176897971,13.58047093,230.6,230.59,3.12549]
[1738176898177,13.58047093,230.64,230.6,0.25098]
[1738176899374,13.58047093,230.64,230.6,312.25098]
[1738176899766,13.58047093,230.64,230.62,0.12549]
[1738176899965,13.58047093,230.67,230.62,0.37647]
[1738176900476,13.58047093,230.69,230.65,0.12549]
[1738176900676,13.58047093,230.69,230.63,0.6502852]
[1738176900879,13.58047093,230.69,230.64,24.278844]
[1738176901061,13.58047093,230.69,230.64,0.65024368]
[1738176901259,13.58047093,230.67,230.61,0.65026042]
[1738176901574,13.58047093,230.69,230.62,24.278844]
[1738176901784,13.58047093,230.71,230.65,0.12549]
[1738176901954,13.58047093,230.71,230.65,0.77571591]
[1738176902155,13.58047093,230.71,230.65,0.12549]
[1738176902972,13.58047093,230.71,230.64,0.90122054]
[1738176903181,15.31427093,230.71,230.64,0.12549]
[1738176903385,15.31427093,230.71,230.64,0.77573879]
[1738176903561,13.58047093,230.69,230.64,0.77573879]
[1738176903761,13.58047093,230.71,230.65,0.25098]
[1738176903959,13.58047093,230.71,230.67,0.12549]
[1738176904888,13.58047093,230.69,230.6,4.46179]
[1738176905066,13.58047093,230.65,230.61,0.65034816]
[1738176905299,13.58047093,230.67,230.61,3.65034816]
[1738176905593,13.58047093,230.67,230.62,0.37647]
[1738176906867,13.58047093,230.65,230.62,0.37647]
[1738176908285,13.58047093,230.65,230.61,3.0]
[1738176908286,13.58047093,230.63,230.61,3.0]
[1738176909112,13.58047093,230.63,230.59,0.37647]
[1738176909318,13.58047093,230.63,230.6,3.0]
[1738176909701,13.58047093,230.63,230.6,3.65039093]
[1738176909899,0.03,230.73,230.66,24.278844]
[1738176910090,0.03,230.73,230.69,0.12549]
[1738176910301,0.03,230.73,230.71,0.12549]
[1738176910600,13.58047093,230.72,230.68,0.25098]
[1738176910801,13.58047093,230.72,230.69,0.12549]
[1738176911196,13.58047093,230.72,230.69,312.12549]
[1738176911405,13.58047093,230.72,230.69,312.0]
[1738176913129,0.03,230.73,230.7,0.77565884]
[1738176914599,0.03,230.73,230.7,0.12549]
[1738176914798,0.03,230.73,230.71,0.65007389]
[1738176915015,0.03,230.73,230.72,0.12549]
[1738176915332,0.03,230.73,230.72,0.37647]
[1738176915497,0.03,230.73,230.65,4.3355]
[1738176915824,13.58047093,230.7,230.67,0.37647]
[1738176916008,13.58047093,230.72,230.68,0.65014937]
[1738176916331,13.58047093,230.72,230.69,0.12549]
[1738176916642,13.58047093,230.72,230.66,0.90113393]
[1738176916943,13.58047093,230.72,230.67,0.12549]
[1738176917451,13.58047093,230.72,230.67,312.12549]
[1738176918121,13.58047093,230.72,230.67,316.46049]
[1738176918533,13.58047093,230.72,230.67,4.46049]
[1738176918740,13.58047093,230.72,230.67,5.11065998]
[1738176919355,15.31417093,230.72,230.67,0.65016998]
[1738176919533,13.58047093,230.72,230.67,4.3351]
[1738176919843,6.76471816,230.72,230.67,0.37647]
[1738176921050,0.03,230.73,230.67,0.37647]
[1738176921433,0.03,230.73,230.68,312.0]
[1738176921820,0.03,230.73,230.68,316.3349]
[1738176922121,0.03,230.73,230.69,0.12549]
[1738176922934,0.03,230.73,230.71,0.12549]
[1738176923241,0.03,230.73,230.7,0.65014853]
[1738176923446,0.03,230.73,230.69,4.3348]
[1738176923653,6.76471816,230.71,230.67,3.0]
[1738176923825,6.79471816,230.73,230.68,0.650122]
[1738176924022,6.79471816,230.73,230.69,0.12549]
[1738176926257,0.03,230.73,230.71,0.12549]
[1738176926441,0.03,230.73,230.71,0.77553962]
[1738176926643,0.03,230.73,230.72,0.37647]
[1738176927575,0.03,230.73,230.72,0.50196]
[1738176928165,0.03,230.73,230.72,4.83616]
[1738176929151,0.03,230.73,230.72,28.613044]
[1738176929474,0.03,230.73,230.72,30.239844]
[1738176929646,0.03,230.73,230.72,342.239844]
[1738176930565,0.03,230.73,230.72,318.46296]
[1738176930744,0.03,230.73,230.72,312.0]
[1738176930946,0.03,230.73,230.7,33.0]
[1738176931146,0.03,230.73,230.72,0.12549]
[1738176931347,0.03,230.73,230.7,3.65007301]
[1738176931543,0.03,230.73,230.71,0.37647]
[1738176931773,0.03,230.73,230.72,1.02648859]
[1738176932485,0.03,230.73,230.72,0.37647]
[1738176932969,0.03,230.73,230.72,4.45969]
[1738176933349,0.03,230.73,230.72,4.83616]
[1738176933887,0.03,230.73,230.72,316.83616]
[1738176934460,1.7327,230.85,230.75,30.0]
[1738176934667,2.5260168,230.86,230.76,0.64985933]
[1738176935076,0.7934168,230.86,230.76,0.64985933]
[1738176935274,0.7934168,230.86,230.77,0.50196]
[1738176935569,0.7934168,230.87,230.77,0.37647]
[1738176935777,0.7934168,230.87,230.77,1.02639784]
[1738176936071,1.7326,230.86,230.77,1.02639784]
[1738176936266,1.7326,230.86,230.77,5.35969784]
[1738176937677,0.7934168,230.85,230.75,0.64982654]
[1738176937857,0.7934168,230.85,230.73,1.6438]
[1738176938475,0.7934168,230.85,230.74,0.37647]
[1738176938682,0.7934168,230.85,230.74,0.7755012]
[1738176938865,0.7934168,230.85,230.74,0.12549]
[1738176939187,0.7934168,230.85,230.74,0.77551608]
[1738176939571,0.7934168,230.85,230.76,0.12549]
[1738176939785,1.7328,230.84,230.76,0.12549]
[1738176939986,0.7934168,230.83,230.76,4.45889]
[1738176940161,0.7934168,230.83,230.76,0.12549]
[1738176940360,0.7934168,230.83,230.77,0.25098]
[1738176940668,0.7934168,230.83,230.78,0.12549]
[1738176940862,1.7328,230.84,230.78,0.12549]
[1738176941168,2.5262168,230.84,230.78,0.12549]
[1738176941371,1.7328,230.84,230.78,0.12549]
[1738176941678,0.7934168,230.87,230.78,0.12549]
[1738176941679,0.03,230.85,230.78,0.77537632]
[1738176941982,0.03,230.85,230.82,0.12549]
[1738176943378,0.03,230.85,230.78,4.333]
[1738176943955,0.03,230.85,230.79,0.37647]
[1738176944689,0.03,230.85,230.81,0.12549]
[1738176944870,0.03,230.85,230.81,312.12549]
[1738176945183,0.03,230.85,230.82,0.64978433]
[1738176945383,0.03,230.85,230.83,0.37647]
[1738176946259,0.03,230.85,230.82,0.64978433]
[1738176946464,0.03,230.85,230.8,4.98246082]
[1738176946774,0.03,230.85,230.8,0.64976082]
[1738176946978,0.03,230.85,230.78,20.64985563]
[1738176947178,0.03,230.85,230.79,0.12549]
[1738176948581,0.03,230.85,230.81,0.37647]
[1738176948886,0.03,230.85,230.83,0.50196]
[1738176949261,0.03,230.85,230.83,312.50196]
[1738176949568,0.03,230.85,230.84,1.02618879]
[1738176950180,0.03,230.85,230.82,3.0]
[1738176953959,0.03,230.85,230.78,312.0]
[1738176954171,0.03,230.85,230.78,315.0]
[1738176954367,0.8234168,230.85,230.78,315.0]
[1738176955000,1.7328,230.84,230.78,315.0]
[1738176955183,0.7934168,230.83,230.78,315.0]
[1738176955587,0.03,230.85,230.79,0.77542738]
[1738176955890,1.7627,230.85,230.79,0.12549]
[1738176956590,0.7934168,230.84,230.79,0.12549]
[1738176957094,0.03,230.85,230.81,0.12549]
[1738176957296,0.03,230.85,230.83,0.12549]
[1738176957510,0.03,230.85,230.82,0.64976274]
[1738176957797,0.03,230.85,230.82,0.64983964]
[1738176957994,0.03,230.85,230.8,0.64983964]
[1738176958872,0.03,230.85,230.82,0.12549]
[1738176959898,0.03,230.85,230.82,0.37647]
[1738176960104,0.03,230.85,230.82,313.02620101]
[1738176960407,0.03,230.85,230.74,30.0]
[1738176960574,0.03,230.85,230.75,7.98348758]
[1738176960781,0.03,230.85,230.76,0.50196]
[1738176960991,0.03,230.85,230.79,0.12549]
[1738176961203,0.03,230.85,230.82,0.12549]
[1738176961416,0.03,230.85,230.82,0.77524337]
[1738176962202,0.03,230.85,230.82,0.12549]
[1738176962999,0.03,230.85,230.82,0.77527583]
[1738176963507,0.03,230.85,230.84,0.12549]
[1738176963810,0.03,230.85,230.84,0.77518902]
[1738176965503,0.03,230.85,230.84,5.48365902]
[1738176965986,1.6241,230.93,230.86,0.12549]
[1738176966392,0.7934168,230.92,230.84,0.64969902]
[1738176966705,0.7934168,230.92,230.82,4.9819101]
[1738176966888,0.7934168,230.92,230.83,0.50196]
[1738176967093,0.7934168,230.92,230.85,0.12549]
[1738176967493,2.5256168,230.92,230.85,0.12549]
[1738176968005,2.5256168,230.92,230.85,312.12549]
[1738176968211,2.5256168,230.92,230.84,0.12549]
[1738176968382,2.5256168,230.92,230.84,0.77519656]
[1738176970687,2.5256168,230.92,230.81,4.3325]
[1738176970887,2.5256168,230.92,230.82,0.64976099]
[1738176971211,2.5256168,230.92,230.82,312.64976099]
[1738176971512,2.5256168,230.92,230.82,312.0]
[1738176974188,2.5256168,230.92,230.82,0.12549]
[1738176974382,0.999941,230.9,230.76,0.6497619]
[1738176974721,0.7934168,230.89,230.79,0.12549]
[1738176974891,0.7934168,230.89,230.79,0.77530925]
[1738176975417,0.7934168,230.89,230.79,0.12549]
[1738176975712,1.7324,230.89,230.79,0.12549]
[1738176975913,1.7934168,230.88,230.76,4.3335]
[1738176976213,1.0,230.86,230.76,7.3335]
[1738176976396,0.7934168,230.85,230.76,7.3335]
[1738176976595,0.7934168,230.85,230.77,1.02637891]
[1738176976800,0.7934168,230.88,230.77,4.02637891]
[1738176976996,1.7325,230.87,230.77,4.02637891]
[1738176977197,1.7934168,230.86,230.77,315.77539891]
[1738176977408,0.7934168,230.86,230.77,315.12549]
[1738176977622,0.7934168,230.86,230.78,0.64992704]
[1738176978023,0.7934168,230.86,230.79,0.12549]
[1738176978229,1.7325,230.87,230.79,0.37647]
[1738176978817,0.7934168,230.86,230.79,0.37647]
[1738176979230,0.03,230.88,230.81,0.25098]
[1738176979231,1.7625,230.88,230.81,0.25098]
[1738176979429,0.03,230.88,230.84,0.12549]
[1738176979603,0.03,230.88,230.86,0.12549]
[1738176981134,0.03,230.88,230.86,312.12549]
[1738176981833,0.03,230.88,230.87,1.15160958]
[1738176983038,0.03,230.88,230.82,4.98186923]
[1738176983329,0.03,230.88,230.83,3.0]
[1738176983528,0.03,230.88,230.85,0.50196]
[1738176983731,0.03,230.88,230.87,0.12549]
[1738176983915,0.03,230.88,230.87,3.50196]
[1738176984506,0.03,230.88,230.87,3.12549]
[1738176984912,0.03,230.88,230.87,315.50196]
[1738176986942,0.03,230.88,230.87,319.70787]
[1738176989835,0.03,230.88,230.87,319.83336]
[1738176992536,0.03,230.88,230.87,343.610244]
[1738176992834,1.7313,231.04,230.9,30.0]
[1738176993037,1.647016,231.05,231.04,30.12549]
[1738176993210,13.59562271,231.09,231.04,33.0]
[1738176993211,1.38532735,231.07,231.04,33.0]
[1738176993540,1.38532735,231.07,231.05,0.64899901]
[1738176993832,0.88532735,231.07,231.05,0.64899901]
[1738176994011,0.88532735,231.07,231.06,24.278844]
[1738176994206,2.735e-05,231.07,231.06,30.791444]
[1738176994615,2.735e-05,231.07,231.06,60.791444]
[1738176994826,5.006e-05,231.09,231.08,74.278844]
[1738176995028,5.48059549,231.1,231.09,24.278844]
[1738176995335,5.35519549,231.1,231.09,24.278844]
[1738176995639,5.35519549,231.1,231.09,54.278844]
[1738176995815,2.000011,231.25,231.15,24.153354]
[1738176996007,2.7934278,231.25,231.18,0.25098]
[1738176996313,6.18668727,231.32,231.24,21.96501589]
[1738176996513,1.68188977,231.32,231.26,21.60021941]
[1738176996811,2.5226168,231.31,231.27,0.22390129]
[1738176997123,2.5226168,231.31,231.2,0.64850057]
[1738176997124,1.88997,231.4,231.21,22.77698262]
[1738176997425,1.88997,231.4,231.25,22.2947907]
[1738176997619,1.5135,231.4,231.29,2.0]
[1738176997822,1.5135,231.4,231.29,1.0]
[1738176998023,1.5135,231.4,231.31,1.0]
[1738176998331,3.02,231.54,231.29,1.0]
[1738176998538,20.0,231.53,231.32,1.0]
[1738176998838,0.50196,231.53,231.32,1.0]
[1738176999130,1.729574,231.52,231.36,6.53049085]
[1738176999633,23.776884,231.51,231.36,6.53049085]
[1738176999836,1.729574,231.52,231.36,6.53049085]
[1738177000041,23.776884,231.51,231.43,13.0609817]
[1738177000221,12.9594,231.49,231.32,1.0]
[1738177001017,9.0711,231.5,231.32,1.0]
[1738177001242,44.278844,231.46,231.3,26.72765581]
[1738177001419,44.278844,231.46,231.3,27.72765581]
[1738177001420,20.0,231.42,231.3,27.72765581]
[1738177002235,9.0748,231.41,231.3,27.72765581]
[1738177002629,9.0748,231.41,231.32,1.0]
[1738177002840,20.0,231.47,231.34,2.0]
[1738177003343,16.76807302,231.47,231.34,28.72765581]
[1738177003848,12.9589,231.5,231.36,1.0]
[1738177004014,22.0311,231.49,231.36,1.0]
[1738177004211,22.0311,231.49,231.34,28.72765581]
[1738177004422,22.0311,231.49,231.35,1.0]
[1738177004630,23.776884,231.48,231.35,1.0]
[1738177005026,22.0311,231.49,231.36,2.0]
[1738177005644,20.0,231.46,231.36,2.0]
[1738177006138,9.0731,231.45,231.36,2.0]
[1738177006638,9.0731,231.45,231.37,1.0]
[1738177007343,9.0731,231.45,231.36,27.72765581]
[1738177007544,9.0731,231.45,231.36,26.72765581]
[1738177008037,9.0731,231.45,231.36,27.72765581]
[1738177008221,22.0348,231.45,231.36,26.72765581]
[1738177008740,22.0348,231.45,231.32,27.72765581]